Workbook

Sheet ÍNDICE
B2: Modelo de análisis prospectivo de la oferta y demanda de CEL
B3: 2018-2027
B5: ÍNDICE
B7: 1 | C7: Consideraciones generales
B8: 2 | C8: Resultados
B9: 3 | C9: Obligaciones CEL
B10: 4 | C10: Consumo
C11: 4.1 Consumo Datos SEN
C12: 4.2 Consumo CFE Suministro Básico

Sheet 1. Consideraciones
B2: CONSIDERACIONES GENERALES
B4: Hoja: "2. RESULTADOS" - Hoja de resultados del análisis
B6: A) Escenario:
C7: 1. Escenario A: utiliza la información obtenida mediante fuentes oficiales, como los documentos de planeación del sistema elaborados por SENER (PRODESEN 2018-2032, PRODESEN 2019-2033 y PIIRCE 2019-2033) complementada con información de los permisos de generación otorgados por la CRE.
B9: B) Hipótesis:
C10: 1) Proyecciones de consumo: para elegir el escenario (Alto, Planeación o Bajo) sobre el que calcular los requermientos de CEL y realizar el análisis.
C11: 2) Efecto COVID: posibilidad de contemplar una reducción en el consumo en el año 2020 por efecto de la emergencia sanitaria declarada como consecuencia del COVID-19
C12: 3) Aplicación Modificatorio Lineamientos CEL: permite considerar el otorgamiento de CEL a las Centrales Eléctricas Legadas (centrales de CFE previas a la entrada en vigor de la LIE).
C13: 4) Aplicación de lo establecido en la LTE en lo referente a la posibilidad de diferimiento del 50% de la obligación durante los primeros años de vigencia del sistema de CEL.
C14: 5) Posibilidad de utilización de CEL de los 4 primeros meses del año siguiente para el cumplimiento de obligaciones de un año determinado ya que la liquidación de CEL se hace el 15 de mayo del año siguiente.
B16: C) Análisis realizados:
C17: 1. Análisis del cumplimiento de CEL de todo el Sistema Eléctrico Nacional a nivel macro.
C18: 2. Análisis del cumplimiento de CEL de CFE Suministrador de Servicios Básicos (CFE SSB).
C19: 2. Análisis del cumplimiento de las metas de energías limpias para 2024.
B21: D) Bases de datos consideradas: | F21: Centrales en operación a 31 de diciembre de 2017 (Fuente: Tablas 2.2.14 a 2.2.20 del PRODESEN 2018-2032) | O21: Enlace a documento oficial
F22: Listado de centrales conectadas en 2018 (Fuente: CENACE) | O22: Enlace a documento oficial
F23: Listado de centrales proyectadas para el periodo 2019-2024 (Fuente: Tabla 7.3 Capítulo VII PRODESEN 2019-2033) | O23: Enlace a documento oficial
F24: Permisos de la CRE
F25: Listado proyectos adjudicatarios de la SLP-2015 | O25: Enlace a documento oficial
F26: Listado proyectos adjudicatarios de la SLP-2016 | O26: Enlace a documento oficial
F27: Listado proyectos adjudicatarios de la SLP-2017 | O27: Enlace a documento oficial
B29: Hoja: "3. Obligaciones CEL"
B31: A) Obligaciones 2018 a 2022: datos publicados por la Secretaría de Energía ("SENER")
B33: B) Obligaciones 2023 y 2024 (datos estimados):
C34: 1. Objetivos/metas de Generación Limpia:
D35: 2023: 33.35% (término medio entre la meta del 35% de 2024 y el 31.7% de 2022).
D36: 2024: 35% de acuerdo a la Ley General de Cambio Climático.
C38: 2. Generación estimada: se ha considerado que el dato más preciso de los datos publicados es el correspondiente a Consumo Bruto, de acuerdo a lo siguiente:
D39: GWh | G39: 2017 | H39: 2018 | I39: 2019 | J39: 2020 | K39: 2021 | L39: 2022 | M39: 2023 | N39: 2024 | O39: Comentarios
D40: Generación (Obligaciones CEL SENER) | G40: - | H40: - | I40: 321577.8165 | J40: 319698.6219 | K40: 334542.8633 | L40: 349598.8612 | M40: - | N40: - | O40: Estimaciones hechas 3 años antes
D41: Generación Bruta PRODESEN 2019 | G41: 309370.4 | H41: 317278
D42: Generación Bruta PRODESEN 2018 | G42: 329164
D43: Generación MEM (macro) | G43: 302751.38 | H43: 310554.38 | I43: 317643.85
D44: Consumo bruto (PRODESEN 2019) | G44: 309726.5 | H44: 318236.4 | I44: 329042 | J44: 339611 | K44: 350231 | L44: 360754 | M44: 371516 | N44: 382530.5 | O44: Datos >=2019 proyecciones PAMNRT 2019
D45: Consumo bruto (CENACE) | G45: 309021.5
C47: 3. Generación limpia sin CELs:
D48: Se tiene en cuenta la proyección de generación limpia de CE limpias que no generan CELs (sin tener en cuenta el Modificatorio de Lineamientos, es decir, sin contemplar que las CE Legadas generen CELs).
C50: 4. Consumo estimado: Se considera que la energía a la cual es aplicable la obligación de CELs es el Consumo final más las pérdidas técnicas. Se han utilizado los Pronósticos de consumo bruto del SEN del PAMRNT 2019-2033 restando las pérdidas no técnicas del sistema, estimadas en un 7.5%, de acuerdo con las cifras de 2018 del PRODESEN 2019-2033.
C53: 5. Consumo estimado Contratos de Interconexión Legados ("CIL") exentos:
D54: Se considera el 100% de la energía de los CIL de fuentes de energía renovable y de cogeneración eficiente.

Sheet 2. RESULTADOS
B2: HIPÓTESIS
C5: 1) Proyección Consumo | D5: Planeación | E5: 2018 | F5: 2019 | G5: 2020 | H5: 2021 | I5: 2022 | J5: 2023 | K5: 2024
C6: (Consumo final más pérdidas técnicas) | E6: 294273.1991 | F6: 304265.1374 | G6: 314038.2917 | H6: 323858.6057 | I6: 333589.2238 | J6: 343540.8452 | K6: 353725.9534
C7: Se tiene en cuenta para obligaciones 2023-2024 y para resultados 2020-2021 (sin considerar efecto COVID-19)
C9: 2) Efecto COVID | E9: Sí | F9: SÍ se considera un descenso en el consumo
C10: Número de meses de afectación | E10: 4
C11: Impacto promedio en consumo | E11: -0.1
C13: 3) Aplicación Modificatorio Lineamientos CEL | E13: No | F13: No se entregan CEL a Centrales Eléctricas Legadas (de CFE)
C14: Año inicio de aplicación | E14: 2021
C16: 4) Aplicación LTE (Posibilidad de 50% de diferimiento) | E16: 2018 | F16: 2019 | G16: 2020 | H16: 2021 | I16: 2022 | J16: 2023 | K16: 2024
E17: No | F17: No | G17: No | H17: No | I17: n/a | J17: n/a | K17: n/a
E18: 0.25 | F18: 0.25 | G18: 0.25 | H18: 0.25 | I18: 0.25 | J18: 0.25 | K18: 0.25
C20: 5) Utilizar CEL 4m año siguiente | E20: Sí
B24: RESULTADOS
B26: 1. Nueva capacidad instalada por tecnología (MW)
S27: GRÁFICO 48. ADICIÓN DE CAPACIDAD DE GENERACIÓN DE ENERGÍA LIMPIA POR ESCENARIO Y POR TECNOLOGÍA, EN MW | AE27: GRÁFICO 34. ESTIMACIÓN DE ADICIÓN DE CAPACIDAD DE ENERGÍA LIMPIA POR ESCENARIO (MW) | AM27: GRÁFICO 47. ADICIÓN DE CAPACIDAD DE GENERACIÓN DE ENERGÍA LIMPIA POR ESCENARIO, EN MW
C28: Tecnología | D28: Esquema | E28: 2018 | F28: 2019 | G28: 2020 | H28: 2021 | I28: 2022 | J28: 2023 | K28: 2024 | L28: TOTAL 2018-2024 | M28: Promedio '18-'21 | P28: Promedio '21-'24
B29: Escenario A | C29: Eólica | D29: SLP | E29: 880.5 | F29: 308.55 | G29: 929.69 | H29: 0 | I29: 0 | J29: 0 | K29: 0 | L29: 2118.74 | M29: 529.685 | N29: 0.3538162234 | P29: 0 | Q29: -1
D30: CIL-AUT | E30: 790.51 | F30: 572 | G30: 464 | H30: 649 | I30: 520 | J30: 0 | K30: 0 | L30: 2995.51 | M30: 618.8775 | N30: 0.4133945644 | P30: 173.3333333 | Q30: -0.7199230327
D31: Otros | E31: 0 | F31: 302 | G31: 754 | H31: 338 | I31: 0 | J31: 175 | K31: 1275.6 | L31: 2844.6 | M31: 348.5 | N31: 0.2327892122 | P31: 483.5333333 | Q31: 0.38747011
D32: TOTAL | E32: 1671.01 | F32: 1182.55 | G32: 2147.69 | H32: 987 | I32: 520 | J32: 175 | K32: 1275.6 | L32: 7958.85 | M32: 1497.0625 | N32: 1 | O32: 0.351029985 | P32: 656.8666667 | Q32: -0.5612296302
C33: FV | D33: SLP | E33: 1570.8 | F33: 1628.25 | G33: 1136.3 | H33: 330 | I33: 0 | J33: 0 | K33: 0 | L33: 4665.35 | M33: 1166.3375 | N33: 0.4534429238 | P33: 0 | Q33: -1
D34: CIL-AUT | E34: 90 | F34: 797 | G34: 60 | H34: 0 | I34: 0 | J34: 0 | K34: 0 | L34: 947 | M34: 236.75 | N34: 0.09204249389 | P34: 0 | Q34: -1
D35: Otros | E35: 495.35 | F35: 1949.026 | G35: 2013 | H35: 219 | I35: 0 | J35: 562 | K35: 790 | L35: 6028.376 | M35: 1169.094 | N35: 0.4545145823 | P35: 450.6666667 | Q35: -0.6145163121
D36: TOTAL | E36: 2156.15 | F36: 4374.276 | G36: 3209.3 | H36: 549 | I36: 0 | J36: 562 | K36: 790 | L36: 11640.726 | M36: 2572.1815 | N36: 1 | O36: 0.6031230047 | P36: 450.6666667 | Q36: -0.8247920426
C37: Cogeneración | D37: TOTAL | E37: 351 | F37: 321.172 | G37: 4.278 | H37: 0 | I37: 320 | J37: 0 | K37: 870 | L37: 1866.45 | M37: 169.1125 | O37: 0.03965336005 | P37: 396.6666667 | Q37: 1.345578634
C38: Bioenergía | D38: TOTAL | E38: 0 | F38: 5.658 | G38: 0 | H38: 0 | I38: 0 | J38: 0 | K38: 0 | L38: 5.658 | M38: 1.4145 | O38: 0.0003316707978 | P38: 0 | Q38: -1
C39: Nuclear | D39: TOTAL | E39: 0 | F39: 0 | G39: 0 | H39: 0 | I39: 0 | J39: 0 | K39: 0 | L39: 0 | M39: 0 | O39: 0 | P39: 0
C40: Hidro | D40: TOTAL | E40: 0 | F40: 15 | G40: 0 | H40: 60 | I40: 116 | J40: 194.3 | K40: 82 | L40: 467.3 | M40: 18.75 | O40: 0.004396484594 | P40: 130.7666667 | Q40: 5.974222222
C41: Geotérmica | D41: TOTAL | E41: 0 | F41: 25 | G41: 0 | H41: 0 | I41: 0 | J41: 25 | K41: 0 | L41: 50 | M41: 6.25 | O41: 0.001465494865 | P41: 8.333333333 | Q41: 0.3333333333
C42: TOTAL | D42: TOTAL | E42: 4178.16 | F42: 5923.656 | G42: 5361.268 | H42: 1596 | I42: 956 | J42: 956.3 | K42: 3017.6 | L42: 21988.984 | M42: 4264.771 | O42: 1 | P42: 1643.3 | Q42: -0.6146803662
B46: 2. Cumplimiento obligaciones CEL SEN
H47: =+H49/G49 -> 1.063905787
C48: Concepto | D48: Unidad | E48: 2018 | F48: 2019 | G48: 2020 | H48: 2021 | I48: 2022 | J48: 2023 | K48: 2024 | L48: Fuente | N48: GRÁFICO 35, 36 y 39. CUMPLIMIENTO DE REQUISITOS DE CEL POR ESCENARIO
B49: Información general | C49: Consumo final obligado a CEL | D49: GWh | E49: 269236.2898 | F49: 274522.2829 | G49: 271720.0125 | H49: 289084.4937 | I49: 297645.6895 | J49: 306128.644 | K49: 316313.7522 | L49: Sener
C50: Req. CEL | D50: % Req. CEL | E50: 0.05 | F50: 0.058 | G50: 0.074 | H50: 0.109 | I50: 0.139 | J50: 0.148 | K50: 0.174 | L50: Sener
D51: miles CEL | E51: 13461.81449 | F51: 15922.29241 | G51: 20107.28093 | H51: 31510.20981 | I51: 41372.75084 | J51: 45307.03932 | K51: 55038.59288
D52: miles CEL (acum.) | E52: 13461.81449 | F52: 29384.1069 | G52: 49491.38782 | H52: 81001.59764 | I52: 122374.3485 | J52: 167681.3878 | K52: 222719.9807
B53: Escenario A (Base) | C53: CEL disponibles (A) | D53: Miles CEL generados | E53: 7553.540506 | F53: 19211.55975 | G53: 32661.42559 | H53: 39922.69141 | I53: 41560.93087 | J53: 43679.52581 | K53: 49790.86196 | AK53: 1000 | AO53: Escenario A | AP53: 2018 | AS53: 2019 | AW53: 2020 | BA53: 2021 | BE53: 2022 | BI53: 2023 | BM53: 2024
D54: % CEL generados año (A) | E54: 0.02805543232 | F54: 0.06998178633 | G54: 0.1202025029 | H54: 0.1381004249 | I54: 0.1396322283 | J54: 0.1426835635 | K54: 0.1574097288 | AK54: Escenario A | AP54: CEL Disponibles | AQ54: Obligación | AR54: Déficit (-) / Superávit (+) | AT54: CEL Disponibles | AU54: Obligación | AV54: Déficit (-) / Superávit (+) | AX54: CEL Disponibles | AY54: Obligación | AZ54: Déficit (-) / Superávit (+) | BB54: CEL Disponibles | BC54: Obligación | BD54: Déficit (-) / Superávit (+) | BF54: CEL Disponibles | BG54: Obligación | BH54: Déficit (-) / Superávit (+) | BJ54: CEL Disponibles | BK54: Obligación | BL54: Déficit (-) / Superávit (+) | BN54: CEL Disponibles | BO54: Obligación | BP54: Déficit (-) / Superávit (+)
D55: CEL utilizados año anterior | E55: 0 | F55: 5072.931855 | G55: 2660.773752 | H55: 0 | I55: 0 | J55: 0 | K55: 0 | AK55: 2018 | AO55: Requisito anual | AQ55: =+E51/$AK$53 -> 13.46181449 | AS55: Requisito anual | AU55: =+F51/$AK$53 -> 15.92229241 | AW55: Requisito anual | AY55: =+G51/$AK$53 -> 20.10728093 | BA55: Requisito anual | BC55: =+H51/$AK$53 -> 31.51020981 | BE55: Requisito anual | BG55: =+I51/$AK$53 -> 41.37275084 | BI55: Requisito anual | BK55: =+J51/$AK$53 -> 45.30703932 | BM55: Requisito anual | BO55: =+K51/$AK$53 -> 55.03859288
D56: CEL disponibles año anterior | E56: 0 | F56: 0 | G56: 0 | H56: 9893.370916 | I56: 18305.85251 | J56: 18494.03255 | K56: 16866.51904 | AJ56: CEL generados ene-dic | AK56: =E53/$AK$53 -> 7.553540506 | AO56: Obligac. Pdte. Año ant. | AQ56: 0 | AS56: Obligac. Pdte. Año ant. | AU56: =+IF(E60<0,-E60+5%*E61,0)/$AK$53 -> 0.8771092345 | AW56: Obligac. Pdte. Año ant. | AY56: =+IF(F60<0,-F60+5%*F61,0)/$AK$53 -> 0 | BA56: Obligac. Pdte. Año ant. | BC56: =+IF(G60<0,-G60+5%*G61,0)/$AK$53 -> 0 | BE56: Obligac. Pdte. Año ant. | BG56: =+IF(H60<0,-H60+5%*H61,0)/$AK$53 -> 0 | BI56: Obligac. Pdte. Año ant. | BK56: =+IF(I60<0,-I60+5%*I61,0)/$AK$53 -> 0 | BM56: Obligac. Pdte. Año ant. | BO56: =+IF(J60<0,-J60+5%*J61,0)/$AK$53 -> 0
D57: CEL año siguiente utilizados | E57: 5072.931855 | F57: 2660.773752 | G57: 0 | H57: 0 | I57: 0 | J57: 0 | K57: 0 | AI57: CEL generados ene-dic | AJ57: CEL generados ene-abr sig año | AK57: =+E57/$AK$53 -> 5.072931855 | AO57: CEL generados año | AP57: =+E53/$AK$53 -> 7.553540506 | AS57: CEL generados año | AT57: =+F53/$AK$53 -> 19.21155975 | AW57: CEL generados año | AX57: =+G53/$AK$53 -> 32.66142559 | BA57: CEL generados año | BB57: =+H53/$AK$53 -> 39.92269141 | BE57: CEL generados año | BF57: =+I53/$AK$53 -> 41.56093087 | BI57: CEL generados año | BJ57: =+J53/$AK$53 -> 43.67952581 | BM57: CEL generados año | BN57: =+K53/$AK$53 -> 49.79086196
D58: Miles CEL disponibles (A) | E58: 12626.47236 | F58: 16799.40164 | G58: 30000.65184 | H58: 49816.06232 | I58: 59866.78338 | J58: 62173.55835 | K58: 66657.38099 | AI58: CEL generados ene-abr sig año | AJ58: Diferimiento sig. año | AK58: =+E61/$AK$53 -> 0.8353421281 | AO58: CEL utilizados año ant. | AP58: 0 | AS58: CEL utilizados año ant. | AT58: =-F55/$AK$53 -> -5.072931855 | AW58: CEL utilizados año ant. ene-abr utilizados año anterior | AX58: =-G55/$AK$53 -> -2.660773752 | BA58: CEL utilizados año ant. ene-abr utilizados año anterior | BB58: =-H55/$AK$53 -> 0 | BE58: CEL utilizados año ant. ene-abr utilizados año anterior | BF58: =-I55/$AK$53 -> 0 | BI58: CEL utilizados año ant. ene-abr utilizados año anterior | BJ58: =-J55/$AK$53 -> 0 | BM58: CEL utilizados año ant. ene-abr utilizados año anterior | BN58: =-K55/$AK$53 -> 0
C59: Balance cumplimiento Obligación CEL (A) | D59: CEL necesarios para cumplir requisito (A) | E59: 13461.81449 | F59: 16799.40164 | G59: 20107.28093 | H59: 31510.20981 | I59: 41372.75084 | J59: 45307.03932 | K59: 55038.59288 | AI59: Exceso CEL | AJ59: Obligación anual | AK59: =+E51/$AK$53 -> 13.46181449 | AO59: Superávit año ant. | AP59: 0 | AS59: Superávit año ant. | AT59: =+IF(E60>0,E60,0)/$AK$53 -> 0 | AW59: Superávit año ant. | AX59: =+IF(F60>0,F60,0)/$AK$53 -> 0 | BA59: Superávit año ant. | BB59: =+IF(G60>0,G60,0)/$AK$53 -> 9.893370916 | BE59: Superávit año ant. | BF59: =+IF(H60>0,H60,0)/$AK$53 -> 18.30585251 | BI59: Superávit año ant. | BJ59: =+IF(I60>0,I60,0)/$AK$53 -> 18.49403255 | BM59: Superávit año ant. | BN59: =+IF(J60>0,J60,0)/$AK$53 -> 16.86651904
D60: Balance (miles CEL) | E60: -835.3421281 | F60: 0 | G60: 9893.370916 | H60: 18305.85251 | I60: 18494.03255 | J60: 16866.51904 | K60: 11618.78811 | AI60: Obligación anual | AO60: CEL año sig. | AP60: =+E57/$AK$53 -> 5.072931855 | AS60: CEL año sig. | AT60: =+F57/$AK$53 -> 2.660773752 | AW60: CEL gen. año siguiente | AX60: =+G57/$AK$53 -> 0 | BA60: CEL gen. año siguiente | BB60: =+H57/$AK$53 -> 0 | BE60: CEL gen. año siguiente | BF60: =+I57/$AK$53 -> 0 | BI60: CEL gen. año siguiente | BJ60: =+J57/$AK$53 -> 0 | BM60: CEL gen. año siguiente | BN60: =+K57/$AK$53 -> 0
D61: Diferimiento CEL (25%/50%) | E61: 835.3421281 | F61: 0 | G61: 0 | H61: 0 | I61: 0 | J61: 0 | K61: 0 | AJ61: Total | AK61: =SUM(AK56:AK57) -> 12.62647236 | AO61: Balance Anual | AR61: =+SUM(AP57:AP60)-AQ55-AQ56 -> -0.8353421281 | AS61: Balance Anual | AV61: =+SUM(AT57:AT60)-AU55-AU56 -> 3.330669074e-15 | AW61: Balance Anual | AZ61: =+SUM(AX57:AX60)-AY55-AY56 -> 9.893370916 | BA61: Balance Anual | BD61: =+SUM(BB57:BB60)-BC55-BC56 -> 18.30585251 | BE61: Balance Anual | BH61: =+SUM(BF57:BF60)-BG55-BG56 -> 18.49403255 | BI61: Balance Anual | BL61: =+SUM(BJ57:BJ60)-BK55-BK56 -> 16.86651904 | BM61: Balance Anual | BP61: =+SUM(BN57:BN60)-BO55-BO56 -> 11.61878811
D62: Incumplimiento (con multa) | E62: 0 | F62: 0 | G62: 0 | H62: 0 | I62: 0 | J62: 0 | K62: 0 | AO62: Total CEL disponibles | AP62: =+SUM(AP57:AP60) -> 12.62647236 | AS62: Total CEL disponibles | AT62: =+SUM(AT57:AT60) -> 16.79940164 | AW62: Total CEL disponibles | AX62: =+SUM(AX57:AX60) -> 30.00065184 | BA62: Total CEL disponibles | BB62: =+SUM(BB57:BB60) -> 49.81606232 | BE62: Total CEL disponibles | BF62: =+SUM(BF57:BF60) -> 59.86678338 | BI62: Total CEL disponibles | BJ62: =+SUM(BJ57:BJ60) -> 62.17355835 | BM62: Total CEL disponibles | BN62: =+SUM(BN57:BN60) -> 66.65738099
C63: Cumplimiento obligación (sin considerar balance) | D63: % anual (sin considerar balance) | E63: 0.5611086464 | F63: 1.206582523 | G63: 1.624358147 | H63: 1.266976375 | I63: 1.004548405 | J63: 0.9640781315 | K63: 0.904653614
D64: % anual (considerando balance) | E64: 0.9379472857 | F64: 1 | G64: 1.492029278 | H64: 1.580949877 | I64: 1.447009981 | J64: 1.37227149 | K64: 1.211102565
B65: S-CEL | C65: Datos oficiales CRE | D65: CEL emitidos CRE | E65: 6899.521 | F65: 14373.46
D66: CEL cuenta CRE | E66: 1612.8448 | F66: 2668.57665
D67: Total CELs | E67: 8512.3658 | F67: 17042.03665
C69: Origen CEL (Escenario A) | D69: Unidad | E69: 2018 | F69: 2019 | G69: 2020 | H69: 2021 | I69: 2022 | J69: 2023 | K69: 2024
C70: SLP | D70: miles CEL | E70: 3139.756969 | F70: 11343.74508 | G70: 18307.56661 | H70: 20659.64163 | I70: 21040.05264 | J70: 21040.05264 | K70: 21040.05264
C71: SLP-2015 | D71: miles CEL | E71: 1803.756595 | F71: 4068.952184 | G71: 4673.311444 | H71: 5276.970455 | I71: 5643.996304 | J71: 5643.996304 | K71: 5643.996304
C72: SLP-2016 | D72: miles CEL | E72: 1336.000374 | F72: 6975.99947 | G72: 9239.503836 | H72: 9429.181927 | I72: 9442.567078 | J72: 9442.567078 | K72: 9442.567078
C73: SLP-2017 | D73: miles CEL | E73: 0 | F73: 298.7934297 | G73: 4394.751327 | H73: 5953.489253 | I73: 5953.489253 | J73: 5953.489253 | K73: 5953.489253
C74: CE Legada | D74: miles CEL | E74: 0 | F74: 0 | G74: 0 | H74: 0 | I74: 0 | J74: 0 | K74: 0
C75: GEN-LIE | D75: miles CEL | E75: 1216.747855 | F75: 4670.77898 | G75: 11156.82331 | H75: 16066.01409 | I75: 17323.84255 | J75: 19221.50623 | K75: 22725.59022
C76: CE Leg-Ampliación | D76: miles CEL | E76: 2879.94 | F76: 2879.94 | G76: 2879.94 | H76: 2879.94 | I76: 2879.94 | J76: 2879.94 | K76: 2879.94
C77: PIE > LIE | D77: miles CEL | E77: 317.095682 | F77: 317.095682 | G77: 317.095682 | H77: 317.095682 | I77: 317.095682 | J77: 538.026938 | K77: 3145.279104
C78: PIE < LIE | D78: miles CEL | E78: 0 | F78: 0 | G78: 0 | H78: 0 | I78: 0 | J78: 0 | K78: 0
C79: CIL | D79: miles CEL | E79: 0 | F79: 0 | G79: 0 | H79: 0 | I79: 0 | J79: 0 | K79: 0
C80: CIL-AUT-Limpia | D80: miles CEL | E80: 0 | F80: 0 | G80: 0 | H80: 0 | I80: 0 | J80: 0 | K80: 0
C81: CIL-COG-Limpia | D81: miles CEL | E81: 0 | F81: 0 | G81: 0 | H81: 0 | I81: 0 | J81: 0 | K81: 0
C82: CIL-PP | D82: miles CEL | E82: 0 | F82: 0 | G82: 0 | H82: 0 | I82: 0 | J82: 0 | K82: 0
C83: Exportación | D83: miles CEL | E83: 0 | F83: 0 | G83: 0 | H83: 0 | I83: 0 | J83: 0 | K83: 0
C84: U.P.C. | D84: miles CEL | E84: 0 | F84: 0 | G84: 0 | H84: 0 | I84: 0 | J84: 0 | K84: 0
C85: TOTAL | D85: miles CEL | E85: 7553.540506 | F85: 19211.55975 | G85: 32661.42559 | H85: 39922.69141 | I85: 41560.93087 | J85: 43679.52581 | K85: 49790.86196
D86: Control | E86: OK | F86: OK | G86: OK | H86: OK | I86: OK | J86: OK | K86: OK
D87: Control vs CRE | E87: -958.8252939 | F87: 2169.523095
C89: Origen CEL (Escenario A) | D89: Unidad | E89: 2018 | F89: 2019 | G89: 2020 | H89: 2021 | I89: 2022 | J89: 2023 | K89: 2024
C90: Eólica | D90: miles CEL | E90: 1525.376652 | F90: 4679.309166 | G90: 9419.917362 | H90: 11927.73313 | I90: 12391.76969 | J90: 12759.98845 | K90: 15538.37737
C91: FV | D91: miles CEL | E91: 2053.639219 | F91: 10073.38755 | G91: 18389.27651 | H91: 23031.65833 | I91: 23573.97082 | J91: 24525.39029 | K91: 26243.36786
C92: Cogeneración | D92: miles CEL | E92: 801.5461346 | F92: 1107.080301 | G92: 1473.343822 | H92: 1481.836704 | I92: 1873.990129 | J92: 2153.836704 | K92: 3451.705557
C93: Bioenergía | D93: miles CEL | E93: 125.7025 | F93: 130.792089 | G93: 132.8475 | H93: 132.8475 | I93: 132.8475 | J93: 132.8475 | K93: 132.8475
C94: Nuclear | D94: miles CEL | E94: 1648.071 | F94: 1648.071 | G94: 1648.071 | H94: 1648.071 | I94: 1648.071 | J94: 1648.071 | K94: 1648.071
C95: Hidro | D95: miles CEL | E95: 762.231 | F95: 762.231 | G95: 762.231 | H95: 864.8063425 | I95: 1104.543329 | J95: 1516.804151 | K95: 1790.754279
C96: Geotérmica | D96: miles CEL | E96: 636.974 | F96: 810.68864 | G96: 835.7384 | H96: 835.7384 | I96: 835.7384 | J96: 942.5877151 | K96: 985.7384
C97: TOTAL | D97: miles CEL | E97: 7553.540506 | F97: 19211.55975 | G97: 32661.42559 | H97: 39922.69141 | I97: 41560.93087 | J97: 43679.52581 | K97: 49790.86196
B100: 3. Cumplimiento obligaciones CEL CFE SSB
C102: Concepto | D102: Unidad | E102: 2018 | F102: 2019 | G102: 2020 | H102: 2021 | I102: 2022 | J102: 2023 | K102: 2024 | M102: GRÁFICO 43. ESCENARIOS DE CUMPLIMIENTO DE CEL CFE SSB
B103: Información general | C103: Consumo final | D103: GWh | E103: 235532.1486 | F103: 237388.2667 | G103: 231283.7116 | H103: 241144.4998 | I103: 243044.8462 | J103: 244960.1684 | K103: 246890.5843
C104: Requisito CEL | D104: % Req. CEL | E104: 0.05 | F104: 0.058 | G104: 0.074 | H104: 0.109 | I104: 0.139 | J104: 0.148 | K104: 0.174
D105: miles CEL | E105: 11776.60743 | F105: 13768.51947 | G105: 17114.99466 | H105: 26284.75048 | I105: 33783.23363 | J105: 36254.10493 | K105: 42958.96168
D106: miles CEL (acum.) | E106: 11776.60743 | F106: 25545.1269 | G106: 42660.12156 | H106: 68944.87203 | I106: 102728.1057 | J106: 138982.2106 | K106: 181941.1723
B107: Escenario A (Base) | C107: CEL disponibles (A) | D107: Miles CEL adquiridos año | E107: 4369.162093 | F107: 12304.21867 | G107: 19700.5391 | H107: 22911.898 | I107: 23277.62389 | J107: 23498.55515 | K107: 26105.80731
D108: % CEL (A) | E108: 0.01855017296 | F108: 0.051831621 | G108: 0.08517910304 | H108: 0.0950131478 | I108: 0.0957750154 | J108: 0.09592806578 | K108: 0.1057383674
D109: CEL utilizados año anterior | E109: 0 | F109: 3415.995836 | G109: 5932.857593 | H109: 6587.71409 | I109: 7759.207964 | J109: 7771.953998 | K109: 8007.86342
D110: CEL disponibles año anterior | E110: 0 | F110: 0 | G110: 0 | H110: 0 | I110: 0 | J110: 0 | K110: 0 | AI110: 2018 | AJ110: 2019 | AK110: 2020 | AL110: 2021 | AM110: 2022 | AN110: 2023 | AO110: 2024
D111: CEL año siguiente utilizados | E111: 3415.995836 | F111: 5932.857593 | G111: 6587.71409 | H111: 7759.207964 | I111: 7771.953998 | J111: 8007.86342 | K111: 8701.935772 | AH111: % Requisito CEL | AI111: =+E104 -> 0.05 | AJ111: =+F104 -> 0.058 | AK111: 0.074 | AL111: 0.109 | AM111: 0.139 | AN111: 0.148 | AO111: 0.174
D112: Miles CEL disponibles (A) | E112: 7785.15793 | F112: 14821.08043 | G112: 20355.3956 | H112: 24083.39188 | I112: 23290.36993 | J112: 23734.46457 | K112: 26799.87967 | AH112: CEL Contratados SLP | AI112: =+#REF!/1000 ->  | AJ112: =+#REF!/1000 ->  | AK112: =+#REF!/1000 ->  | AL112: =+#REF!/1000 ->  | AM112: =+#REF!/1000 ->  | AN112: =+#REF!/1000 ->  | AO112: =+#REF!/1000 -> 
C113: Balance cumplimiento Obligación CEL | D113: Obligación CEL (A) | E113: 11776.60743 | F113: 17907.17656 | G113: 20355.3956 | H113: 26284.75048 | I113: 36094.66016 | J113: 49509.57841 | K113: 69352.94525 | AH113: CEL Contratos Legados | AI113: =+(#REF!+#REF!)/1000 ->  | AJ113: =+(#REF!+#REF!)/1000 ->  | AK113: =+(#REF!+#REF!)/1000 ->  | AL113: =+(#REF!+#REF!)/1000 ->  | AM113: =+(#REF!+#REF!)/1000 ->  | AN113: =+(#REF!+#REF!)/1000 ->  | AO113: =+(#REF!+#REF!)/1000 -> 
D114: Balance (miles CEL) | E114: -3991.449498 | F114: -3086.096134 | G114: 0 | H114: -2201.358603 | I114: -12804.29024 | J114: -25775.11384 | K114: -42553.06558 | L114: -0.9905515386 | AH114: Déficit de CEL | AI114: =+MAX(E105/1000-AI112-AI113,0) ->  | AJ114: =+MAX(F105/1000-AJ112-AJ113,0) -> 
D115: Diferimiento CEL (25%/50%) | E115: 2944.151857 | F115: 3086.096134 | G115: 0 | H115: 2201.358603 | I115: 9023.66504 | J115: 12377.3946 | K115: 17338.23631
D116: Incumplimiento (con multa) | E116: 1047.297641 | F116: 0 | G116: 0 | H116: 0 | I116: 3780.625195 | J116: 13397.71924 | K116: 25214.82927
C117: Cumplimiento obligación (sin considerar balance) | D117: % anual (sin considerar balance) | E117: 0.3710034592 | F117: 0.8936486379 | G117: 1.15106896 | H117: 0.871680255 | I117: 0.6890288878 | J117: 0.6481626066 | K117: 0.6076917666
D118: % anual (considerando balance) | E118: 0.6610696652 | F118: 0.8276614896 | G118: 1 | H118: 0.916249591 | I118: 0.6452580471 | J118: 0.4793913689 | K118: 0.3864274195
C121: Origen CEL (Escenario A) | D121: Unidad | E121: 2018 | F121: 2019 | G121: 2020 | H121: 2021 | I121: 2022 | J121: 2023 | K121: 2024 | M121: GRÁFICO 42. ADQUISICIÓN DE CEL POR PARTE DE CFE SSB
C122: Subastas de Largo Plazo | D122: miles CEL | E122: 1172.126411 | F122: 9107.182987 | G122: 16503.50342 | H122: 19714.86232 | I122: 20080.58821 | J122: 20080.58821 | K122: 20080.58821
C123: SLP-2015 | D123: miles CEL | E123: 1048.375626 | F123: 3838.746967 | G123: 4425.358139 | H123: 5028.570151 | I123: 5380.911 | J123: 5380.911 | K123: 5380.911
C124: SLP-2016 | D124: miles CEL | E124: 123.7507853 | F124: 5050.597833 | G124: 9074.472228 | H124: 9264.148958 | I124: 9277.534 | J124: 9277.534 | K124: 9277.534
C125: SLP-2017 | D125: miles CEL | E125: 0 | F125: 217.8381863 | G125: 3003.673054 | H125: 5422.143211 | I125: 5422.143211 | J125: 5422.143211 | K125: 5422.143211
C126: CE Legada | D126: miles CEL | E126: 0 | F126: 0 | G126: 0 | H126: 0 | I126: 0 | J126: 0 | K126: 0
C127: GEN-LIE | D127: miles CEL | E127: 0 | F127: 0 | G127: 0 | H127: 0 | I127: 0 | J127: 0 | K127: 0
C128: CE Leg-Ampliación | D128: miles CEL | E128: 2879.94 | F128: 2879.94 | G128: 2879.94 | H128: 2879.94 | I128: 2879.94 | J128: 2879.94 | K128: 2879.94
C129: PIE > LIE | D129: miles CEL | E129: 317.095682 | F129: 317.095682 | G129: 317.095682 | H129: 317.095682 | I129: 317.095682 | J129: 538.026938 | K129: 3145.279104
C130: PIE < LIE | D130: miles CEL | E130: 0 | F130: 0 | G130: 0 | H130: 0 | I130: 0 | J130: 0 | K130: 0
C131: CIL | D131: miles CEL | E131: 0 | F131: 0 | G131: 0 | H131: 0 | I131: 0 | J131: 0 | K131: 0
C132: CIL-AUT-Limpia | D132: miles CEL | E132: 0 | F132: 0 | G132: 0 | H132: 0 | I132: 0 | J132: 0 | K132: 0
C133: CIL-COG-Limpia | D133: miles CEL | E133: 0 | F133: 0 | G133: 0 | H133: 0 | I133: 0 | J133: 0 | K133: 0
C134: CIL-PP | D134: miles CEL | E134: 0 | F134: 0 | G134: 0 | H134: 0 | I134: 0 | J134: 0 | K134: 0
C135: Exportación | D135: miles CEL | E135: 0 | F135: 0 | G135: 0 | H135: 0 | I135: 0 | J135: 0 | K135: 0
C136: U.P.C. | D136: miles CEL | E136: 0 | F136: 0 | G136: 0 | H136: 0 | I136: 0 | J136: 0 | K136: 0
C137: TOTAL | D137: miles CEL | E137: 4369.162093 | F137: 12304.21867 | G137: 19700.5391 | H137: 22911.898 | I137: 23277.62389 | J137: 23498.55515 | K137: 26105.80731
D138: Control | E138: OK | F138: OK | G138: OK | H138: OK | I138: OK | J138: OK | K138: OK
C140: Origen CEL (Escenario A) | D140: Unidad | E140: 2018 | F140: 2019 | G140: 2020 | H140: 2021 | I140: 2022 | J140: 2023 | K140: 2024
C141: Eólica | D141: miles CEL | E141: 647.9518801 | F141: 2950.501785 | G141: 6486.07672 | H141: 7790.170695 | I141: 7790.170695 | J141: 8011.101951 | K141: 10618.35412
C142: FV | D142: miles CEL | E142: 841.2702133 | F142: 6209.456481 | G142: 9821.127382 | H142: 11728.39231 | I142: 12094.1182 | J142: 12094.1182 | K142: 12094.1182
C143: Cogeneración | D143: miles CEL | E143: 594.895 | F143: 594.895 | G143: 594.895 | H143: 594.895 | I143: 594.895 | J143: 594.895 | K143: 594.895
C144: Bioenergía | D144: miles CEL | E144: 0 | F144: 0 | G144: 0 | H144: 0 | I144: 0 | J144: 0 | K144: 0
C145: Nuclear | D145: miles CEL | E145: 1648.071 | F145: 1648.071 | G145: 1648.071 | H145: 1648.071 | I145: 1648.071 | J145: 1648.071 | K145: 1648.071
C146: Hidro | D146: miles CEL | E146: 0 | F146: 90.60576266 | G146: 314.631 | H146: 314.631 | I146: 314.631 | J146: 314.631 | K146: 314.631
C147: Geotérmica | D147: miles CEL | E147: 636.974 | F147: 810.68864 | G147: 835.738 | H147: 835.738 | I147: 835.738 | J147: 835.738 | K147: 835.738
C148: TOTAL | D148: miles CEL | E148: 4369.162093 | F148: 12304.21867 | G148: 19700.5391 | H148: 22911.898 | I148: 23277.62389 | J148: 23498.55515 | K148: 26105.80731
D149: Control | E149: OK | F149: OK | G149: OK | H149: OK | I149: OK | J149: OK | K149: OK
C151: Origen CEL (Escenario A) | D151: Unidad | E151: 2018 | F151: 2019 | G151: 2020 | H151: 2021 | I151: 2022 | J151: 2023 | K151: 2024
C152: Eólica | D152: miles CEL | E152: 647.9518801 | F152: 2749.296595 | G152: 5423.610326 | H152: 6743.548975 | I152: 6971.906695 | J152: 7657.9038 | K152: 7790.170695
C153: FV | D153: miles CEL | E153: 841.2702133 | F153: 5737.12708 | G153: 8990.735334 | H153: 10682.91368 | I153: 11971.13535 | J153: 12094.1182 | K153: 12094.1182
C154: Cogeneración | D154: miles CEL | E154: 594.895 | F154: 594.895 | G154: 594.895 | H154: 594.895 | I154: 594.895 | J154: 594.895 | K154: 594.895
C155: Bioenergía | D155: miles CEL | E155: 0 | F155: 0 | G155: 0 | H155: 0 | I155: 0 | J155: 0 | K155: 0
C156: Nuclear | D156: miles CEL | E156: 1648.071 | F156: 1648.071 | G156: 1648.071 | H156: 1648.071 | I156: 1648.071 | J156: 1648.071 | K156: 1648.071
C157: Hidro | D157: miles CEL | E157: 0 | F157: 90.60576266 | G157: 314.631 | H157: 314.631 | I157: 314.631 | J157: 314.631 | K157: 314.631
C158: Geotérmica | D158: miles CEL | E158: 636.974 | F158: 810.68864 | G158: 835.738 | H158: 835.738 | I158: 835.738 | J158: 835.738 | K158: 835.738
C159: TOTAL | D159: miles CEL | E159: 4369.162093 | F159: 11630.68408 | G159: 17807.68066 | H159: 20819.79766 | I159: 22336.37705 | J159: 23145.357 | K159: 23277.62389
D160: Control | E160: OK | F160: OK | G160: OK | H160: OK | I160: OK | J160: OK | K160: OK
B163: 4. Cumplimiento metas Generación Limpia
C165: Concepto | D165: Unidad | E165: 2018 | F165: 2019 | G165: 2020 | H165: 2021 | I165: 2022 | J165: 2023 | K165: 2024 | M165: GRÁFICO 46. CUMPLIMIENTO DE METAS DE GENERACIÓN DE ENERGÍA LIMPIA
B166: Información general | C166: Generación bruta | D166: GWh | E166: 318236.4 | F166: 329042 | G166: 328290.6333 | H166: 350231 | I166: 360754 | J166: 371516 | K166: 382530.5
C167: Meta Generación Limpia | D167: % Meta | E167: 0.25 | F167: 0.267 | G167: 0.283 | H167: 0.3 | I167: 0.317 | J167: 0.3335 | K167: 0.35
D168: GWh | E168: 79559.1 | F168: 87854.214 | G168: 92906.24923 | H168: 105069.3 | I168: 114359.018 | J168: 123900.586 | K168: 133885.675
B169: Escenario A (Base) | C169: Generación limpia (A) | D169: GWh | E169: 74847.37572 | F169: 89921.72236 | G169: 106907.6356 | H169: 115994.3898 | I169: 118802.0516 | J169: 122389.3134 | K169: 128500.6495
D170: % Gen. (A) | E170: 0.2351942635 | F170: 0.2732834178 | G170: 0.3256493628 | H170: 0.3311939543 | I170: 0.3293159649 | J170: 0.3294321466 | K170: 0.3359226245
C171: Balance Energía Limpia | D171: GWh | E171: -4711.72428 | F171: 2067.508357 | G171: 14001.38633 | H171: 10925.08982 | I171: 4443.033605 | J171: -1511.272631 | K171: -5385.02548
C172: Cumplimiento obligación | D172: % | E172: 0.940777054 | F172: 1.0235334 | G172: 1.150704462 | H172: 1.103979848 | I172: 1.038851624 | J172: 0.9878025385 | K172: 0.9597789272
C174: Origen Generación Limpia (Escenario A) | D174: Unidad | E174: 2018 | F174: 2019 | G174: 2020 | H174: 2021 | I174: 2022 | J174: 2023 | K174: 2024
C175: SLP | D175: GWh | E175: 3139.756969 | F175: 11343.74508 | G175: 18307.56661 | H175: 20659.64163 | I175: 21040.05264 | J175: 21040.05264 | K175: 21040.05264
C176: SLP-2015 | D176: GWh | E176: 1803.756595 | F176: 4068.952184 | G176: 4673.311444 | H176: 5276.970455 | I176: 5643.996304 | J176: 5643.996304 | K176: 5643.996304
C177: SLP-2016 | D177: GWh | E177: 1336.000374 | F177: 6975.99947 | G177: 9239.503836 | H177: 9429.181927 | I177: 9442.567078 | J177: 9442.567078 | K177: 9442.567078
C178: SLP-2017 | D178: GWh | E178: 0 | F178: 298.7934297 | G178: 4394.751327 | H178: 5953.489253 | I178: 5953.489253 | J178: 5953.489253 | K178: 5953.489253
C179: CE Legada | D179: GWh | E179: 47468.09618 | F179: 47468.09618 | G179: 47468.09618 | H179: 47468.09618 | I179: 47468.09618 | J179: 47468.09618 | K179: 47468.09618
C180: GEN-LIE | D180: GWh | E180: 1330.96059 | F180: 4784.991715 | G180: 11271.03604 | H180: 16180.22683 | I180: 17438.05529 | J180: 19335.71897 | K180: 22839.80295
C181: CE Leg-Ampliación | D181: GWh | E181: 2879.94 | F181: 2879.94 | G181: 2879.94 | H181: 2879.94 | I181: 2879.94 | J181: 2879.94 | K181: 2879.94
C182: PIE | D182: GWh | E182: 1918.889327 | F182: 1918.889327 | G182: 1918.889327 | H182: 1918.889327 | I182: 1918.889327 | J182: 2139.820583 | K182: 4747.072749
C183: PIE > LIE | D183: GWh | E183: 317.095682 | F183: 317.095682 | G183: 317.095682 | H183: 317.095682 | I183: 317.095682 | J183: 538.026938 | K183: 3145.279104
C184: PIE < LIE | D184: GWh | E184: 1601.793645 | F184: 1601.793645 | G184: 1601.793645 | H184: 1601.793645 | I184: 1601.793645 | J184: 1601.793645 | K184: 1601.793645
C185: CIL | D185: GWh | E185: 18109.73265 | F185: 21526.06005 | G185: 25062.10741 | H185: 26887.59586 | I185: 28057.01818 | J185: 29525.685 | K185: 29525.685
C186: CIL-AUT | D186: GWh | E186: 12907.25738 | F186: 15562.1364 | G186: 18764.43771 | H186: 20589.92615 | I186: 21759.34847 | J186: 23228.0153 | K186: 23228.0153
C187: CIL-COG-Limpia | D187: GWh | E187: 4234.175738 | F187: 4849.495593 | G187: 4850.535922 | H187: 4850.535922 | I187: 4850.535922 | J187: 4850.535922 | K187: 4850.535922
C188: CIL-PP | D188: GWh | E188: 188.5113303 | F188: 334.6398552 | G188: 667.3455748 | H188: 667.3455748 | I188: 667.3455748 | J188: 667.3455748 | K188: 667.3455748
C189: U.P.C. | D189: GWh | E189: 779.788207 | F189: 779.788207 | G189: 779.788207 | H189: 779.788207 | I189: 779.788207 | J189: 779.788207 | K189: 779.788207
C190: TOTAL | D190: GWh | E190: 74847.37572 | F190: 89921.72236 | G190: 106907.6356 | H190: 115994.3898 | I190: 118802.0516 | J190: 122389.3134 | K190: 128500.6495
D191: Control | E191: OK | F191: OK | G191: OK | H191: OK | I191: OK | J191: OK | K191: OK
C194: Origen Generación Limpia (Escenario A) | D194: Unidad | E194: 2018 | F194: 2019 | G194: 2020 | H194: 2021 | I194: 2022 | J194: 2023 | K194: 2024
C195: Eólica | D195: GWh | E195: 14183.92025 | F195: 19065.68186 | G195: 25772.13223 | H195: 30092.96905 | I195: 31726.42793 | J195: 33563.31352 | K195: 36341.70243
C196: FV | D196: GWh | E196: 2488.650387 | F196: 11571.77447 | G196: 21416.86041 | H196: 26071.70962 | I196: 26614.02211 | J196: 27565.44158 | K196: 29283.41915
C197: Cogeneración | D197: GWh | E197: 4246.641641 | F197: 5167.495662 | G197: 5534.799512 | H197: 5543.292394 | I197: 5935.445819 | J197: 6215.292394 | K197: 7513.161246
C198: Bioenergía | D198: GWh | E198: 2792.819441 | F198: 2806.133646 | G198: 2813.735014 | H198: 2813.735014 | I198: 2813.735014 | J198: 2813.735014 | K198: 2813.735014
C199: Nuclear | D199: GWh | E199: 14512.071 | F199: 14512.071 | G199: 14512.071 | H199: 14512.071 | I199: 14512.071 | J199: 14512.071 | K199: 14512.071
C200: Hidro | D200: GWh | E200: 30432.699 | F200: 30434.27708 | G200: 30468.699 | H200: 30571.27434 | I200: 30811.01133 | J200: 31223.27215 | K200: 31497.22228
C201: Geotérmica | D201: GWh | E201: 6190.574 | F201: 6364.28864 | G201: 6389.3384 | H201: 6389.3384 | I201: 6389.3384 | J201: 6496.187715 | K201: 6539.3384
C202: TOTAL | D202: GWh | E202: 74847.37572 | F202: 89921.72236 | G202: 106907.6356 | H202: 115994.3898 | I202: 118802.0516 | J202: 122389.3134 | K202: 128500.6495
D203: Control | E203: OK | F203: OK | G203: OK | H203: OK | I203: OK | J203: OK | K203: OK
B205: Gráficas Modificatorio Lineamientos CEL (hay que copiar y pegar valores en cada escenario: no/sí aplicación Modificatorio)
B207: No aplicación Modificatorio
C209: Concepto | D209: Unidad | E209: 2018 | F209: 2019 | G209: 2020 | H209: 2021 | I209: 2022 | J209: 2023 | K209: 2024 | M209: GRÁFICO 44. EFECTO APLICACIÓN MODIFICATORIO A LINEAMIENTOS SOBRE EL CUMPLIMIENTO DE CEL DE CFE SSB
B210: Información general | C210: Consumo final | D210: GWh | E210: 235532.1486 | F210: 237388.2667 | G210: 231283.7116 | H210: 241144.4998 | I210: 243044.8462 | J210: 244960.1684 | K210: 246890.5843
C211: Requisito CEL sin aplic. Modificatorio | D211: % Req. CEL sin aplic. Modificatorio | E211: 0.05 | F211: 0.058 | G211: 0.074 | H211: 0.109 | I211: 0.139 | J211: 0.148 | K211: 0.174
D212: miles CEL | E212: 11776.60743 | F212: 13768.51947 | G212: 17114.99466 | H212: 26284.75048 | I212: 33783.23363 | J212: 36254.10493 | K212: 42958.96168
D213: miles CEL (acum.) | E213: 11776.60743 | F213: 25545.1269 | G213: 42660.12156 | H213: 68944.87203 | I213: 102728.1057 | J213: 138982.2106 | K213: 181941.1723
B214: Escenario A (Base) | C214: CEL disponibles (A) | D214: CEL adq. sin aplic. Modificatorio (A) | E214: 4369.162093 | F214: 12304.21867 | G214: 19700.5391 | H214: 22911.898 | I214: 23277.62389 | J214: 23498.55515 | K214: 26105.80731
D215: % CEL (A) | E215: 0.01855017296 | F215: 0.051831621 | G215: 0.08517910304 | H215: 0.0950131478 | I215: 0.0957750154 | J215: 0.09592806578 | K215: 0.1057383674
D216: CEL utilizados año anterior | E216: 0 | F216: 3415.995836 | G216: 5932.857593 | H216: 6587.71409 | I216: 7759.207964 | J216: 7771.953998 | K216: 8007.86342
D217: CEL disponibles año anterior | E217: 0 | F217: 0 | G217: 0 | H217: 0 | I217: 0 | J217: 0 | K217: 0
D218: CEL año siguiente utilizados | E218: 3415.995836 | F218: 5932.857593 | G218: 6587.71409 | H218: 7759.207964 | I218: 7771.953998 | J218: 8007.86342 | K218: 8701.935772
D219: Miles CEL disponibles (A) | E219: 7785.15793 | F219: 14821.08043 | G219: 20355.3956 | H219: 24083.39188 | I219: 23290.36993 | J219: 23734.46457 | K219: 26799.87967
C220: Balance cumplimiento Obligación CEL | D220: Obligación CEL (A) | E220: 11776.60743 | F220: 17907.17656 | G220: 20355.3956 | H220: 26284.75048 | I220: 36094.66016 | J220: 49509.57841 | K220: 69352.94525
D221: Balance (miles CEL) | E221: -3991.449498 | F221: -3086.096134 | G221: 0 | H221: -2201.358603 | I221: -12804.29024 | J221: -25775.11384 | K221: -42553.06558
D222: Diferimiento CEL (25%/50%) | E222: 2944.151857 | F222: 3086.096134 | G222: 0 | H222: 2201.358603 | I222: 9023.66504 | J222: 12377.3946 | K222: 17338.23631
D223: Incumplimiento (con multa) | E223: 1047.297641 | F223: 0 | G223: 0 | H223: 0 | I223: 3780.625195 | J223: 13397.71924 | K223: 25214.82927
C224: Cumplimiento obligación (sin considerar balance) | D224: % anual (sin considerar balance) | E224: 0.3710034592 | F224: 0.8936486379 | G224: 1.15106896 | H224: 0.871680255 | I224: 0.6890288878 | J224: 0.6481626066 | K224: 0.6076917666
D225: % anual (considerando balance) | E225: 0.6610696652 | F225: 0.8276614896 | G225: 1 | H225: 0.916249591 | I225: 0.6452580471 | J225: 0.4793913689 | K225: 0.3864274195
B227: Sí aplicación Modificatorio
C229: Concepto | D229: Unidad | E229: 2018 | F229: 2019 | G229: 2020 | H229: 2021 | I229: 2022 | J229: 2023 | K229: 2024
B230: Información general | C230: Consumo final | D230: GWh | E230: 235532.1486 | F230: 237388.2667 | G230: 231283.7116 | H230: 241144.4998 | I230: 243044.8462 | J230: 244960.1684 | K230: 246890.5843
C231: Requisito CEL con aplic. Modificatorio | D231: % Req. CEL con aplic. Modificatorio | E231: 0.05 | F231: 0.058 | G231: 0.074 | H231: 0.2617886184 | I231: 0.2874295019 | J231: 0.302679597 | K231: 0.3245005407
D232: miles CEL | E232: 11776.60743 | F232: 13768.51947 | G232: 17114.99466 | H232: 63128.88544 | I232: 69858.25909 | J232: 74144.44507 | K232: 80116.12812
D233: miles CEL (acum.) | E233: 11776.60743 | F233: 25545.1269 | G233: 42660.12156 | H233: 105789.007 | I233: 175647.2661 | J233: 249791.7112 | K233: 329907.8393
B234: Escenario A (Base) | C234: CEL disponibles (A) | D234: CEL adq. con aplic. Modificatorio (A) | E234: 4369.162093 | F234: 12304.21867 | G234: 19700.5391 | H234: 70379.99418 | I234: 70745.72007 | J234: 70966.65133 | K234: 73573.90349
... 11 more rows

Sheet 3. Obligaciones CEL
B2: Obligaciones CELs (sin tener en cuenta Modificatorio Lineamientos CEL)
B4: Fuente: | C4: SENER | H4: Estimación realizada por la COFECE
B5: Fecha DOF | C5: 2015-03-31 | D5: 2016-03-31 | E5: 2017-03-31 | F5: 2018-03-29 | G5: 2019-03-29 | H5: - | I5: -
B7: Objetivos Energías Limpias | C7: 2018 | D7: 2019 | E7: 2020 | F7: 2021 | G7: 2022 | H7: 2023 | I7: 2024
B8: % Objetivo Generación limpia | C8: 0.25 | D8: 0.267 | E8: 0.283 | F8: 0.3 | G8: 0.317 | H8: 0.3335 | I8: 0.35 | N8: GRÁFICO 33. ESTIMACIÓN DE RANGO DE REQUISITOS DE CEL PARA 2023 Y 2024
B9: Equivalencia (MWh) | D9: 85861277 | E9: 90474710 | F9: 100362859 | G9: 110822839 | H9: 123900586 | I9: 133885675
B10: Generación estimada (MWh) | D10: 321577816.5 | E10: 319698621.9 | F10: 334542863.3 | G10: 349598861.2 | H10: 371516000 | I10: 382530500 | K10: Dato Consumo Bruto PAMNRT 2019
B11: Generación limpia sin CELs (MWh) | D11: 69378490 | E11: 69117114 | F11: 66504797 | G11: 66516692 | H11: 78709787.56 | I11: 78709787.56 | K11: Energía Limpia sin CELs (% Cogeneración y 100% resto)
B12: Generación limpia NECESARIA (MWh) | D12: 16482787 | E12: 21357596 | F12: 33858062 | G12: 44306147 | H12: 45190798.44 | I12: 55175887.44
B13: Consumo estimado (MWh) | D13: 304644261 | E13: 311260714 | F13: 331472889 | G13: 340627664 | H13: 343540845.2 | I13: 353725953.4 | K13: Consumo Final más pérdidas técnicas estimadas
B14: Consumo estimado CILs exentos (MWh) | D14: 20978632 | E14: 21778784 | F14: 20817068 | G14: 21334611 | H14: 37412201.16 | I14: 37412201.16
B15: Consumo participantes obligados (MWh) | D15: 283665629 | E15: 289481930 | F15: 310655821 | G15: 319293053 | H15: 306128644 | I15: 316313752.2
B16: Obligación consumo energía limpia (MWh) | D16: 16482787 | E16: 21357596 | F16: 33858062 | G16: 44306147 | H16: 45190798.44 | I16: 55175887.44
B17: % Requisito Esc. A (Base) | C17: 0.05 | D17: 0.058 | E17: 0.074 | F17: 0.109 | G17: 0.139 | H17: 0.148 | I17: 0.174
B18: % Energía entregada (C/G) | D18: 0.9473422773 | E18: 0.9736066804 | F18: 0.9908233752 | G18: 0.9743385972 | H18: 0.9247 | I18: 0.9247
B19: % Pérdidas | D19: 0.05265772268 | E19: 0.02639331961 | F19: 0.009176624791 | G19: 0.02566140281 | H19: 0.0753 | I19: 0.0753
B21: % Base Energía Limpia sin CELs | D21: 0.2157440173 | E21: 0.2161945947 | F21: 0.1987930525 | G21: 0.1902657571 | H21: 0.2118610977 | I21: 0.2057608153
B26: Objetivos Energías Limpias | F26: 2021 | G26: 2022
B27: Objetivo % Generación limpia | F27: 0.3 | G27: 0.317
B28: Equivalencia (MWh) | F28: 98969440 | G28: 107780453
B29: Generación estimada (MWh) | F29: 329898133.3 | G29: 340001429
B30: Generación limpia sin CELs (MWh) | F30: 65710885 | G30: 63223402
B31: Generación limpia con CELs NECESARIA (MWh) | F31: 33258555 | G31: 44557051
B32: Consumo estimado (MWh) | F32: 322925382 | G32: 334863025
B33: Consumo estimado CILs exentos (MWh) | F33: 18583536 | G33: 13441012
B34: Consumo participantes obligados (MWh) | F34: 304341846 | G34: 321422013
B35: Obligación consumo energía limpia (MWh) | F35: 33258556 | G35: 44557051
B36: % Obligación | F36: 0.1092802598 | G36: 0.1386247649
B37: % Energía entregada (C/G) | F37: 0.9788639261 | G37: 0.9848871105
B38: % Pérdidas | F38: 0.02113607392 | G38: 0.01511288949
F39: -0.1467137927 | G39: -0.3828391888
B41: Estimación Obligaciones CELs (teniendo en cuenta Modificatorio Lineamientos CELS) - sobre Escenario A
C43: 2018 | D43: 2019 | E43: 2020 | F43: 2021 | G43: 2022 | H43: 2023 | I43: 2024
B44: Generación CE Legadas (con CELs) | D44: 47468096.18 | E44: 47468096.18 | F44: 47468096.18 | G44: 47468096.18 | H44: 47468096.18 | I44: 47468096.18
B45: Generación limpia sin CELS | D45: 21910393.82 | E45: 21649017.82 | F45: 19036700.82 | G45: 19048595.82 | H45: 31241691.38 | I45: 31241691.38
B46: CELs necesarios en el Sistema | D46: 63950883.18 | E46: 68825692.18 | F46: 81326158.18 | G46: 91774243.18 | H46: 92658894.62 | I46: 102643983.6
B47: % Requisito | C47: 0.2084445962 | D47: 0.2254445962 | E47: 0.2377547095 | F47: 0.2617886184 | G47: 0.2874295019 | H47: 0.302679597 | I47: 0.3245005407
B48: CELs faltantes | D48: 16482787 | E48: 21357596 | F48: 33858062 | G48: 44306147 | H48: 45190798.44 | I48: 55175887.44
B50: % Base Energía Limpia sin CELs | D50: 0.06813403381 | E50: 0.06771695696 | F50: 0.05690362254 | G50: 0.05448700764 | H50: 0.08409245196 | I50: 0.08167111219 | M50: 2018 | N50: 2019 | O50: 2020 | P50: 2021 | Q50: 2022 | R50: 2023 | S50: 2024
L51: Req. SENER | M51: 0.05 | N51: 0.058 | O51: 0.074 | P51: 0.109 | Q51: 0.139
B52: Simulación Obligaciones CELs teniendo en cuenta estimaciones realizadas en base a últimos datos reales | L52: % Requisito Esc. A | M52: 0.05 | N52: 0.058 | O52: 0.074 | P52: 0.109 | Q52: 0.139 | R52: 0.148 | S52: 0.174
B54: Objetivos Energías Limpias | C54: 2018 | D54: 2019 | E54: 2020 | F54: 2021 | G54: 2022 | H54: 2023 | I54: 2024
B55: % Objetivo Generación limpia | C55: 0.25 | D55: 0.267 | E55: 0.283 | F55: 0.3 | G55: 0.317 | H55: 0.3335 | I55: 0.35
B56: Equivalencia (MWh) | C56: 79559100 | D56: 87854214 | E56: 96109913 | F56: 105069300 | G56: 114359018 | H56: 123900586 | I56: 133885675
B57: Generación estimada (MWh) | C57: 318236400 | D57: 329042000 | E57: 339611000 | F57: 350231000 | G57: 360754000 | H57: 371516000 | I57: 382530500
B58: Generación limpia sin CELs (MWh) | C58: 67293835.21 | D58: 70710162.61 | E58: 74246209.97 | F58: 76071698.42 | G58: 77241120.74 | H58: 78709787.56 | I58: 78709787.56
B59: Generación limpia NECESARIA (MWh) | C59: 12265264.79 | D59: 17144051.39 | E59: 21863703.03 | F59: 28997601.58 | G59: 37117897.26 | H59: 45190798.44 | I59: 55175887.44
B60: Consumo estimado (MWh) | C60: 294273199.1 | D60: 304265137.4 | E60: 314038291.7 | F60: 323858605.7 | G60: 333589223.8 | H60: 343540845.2 | I60: 353725953.4
B61: Consumo estimado CILs exentos (MWh) | C61: 25036909.3 | D61: 29742854.5 | E61: 32948623.57 | F61: 34774112.02 | G61: 35943534.34 | H61: 37412201.16 | I61: 37412201.16
B62: Consumo participantes obligados (MWh) | C62: 269236289.8 | D62: 274522282.9 | E62: 281089668.1 | F62: 289084493.7 | G62: 297645689.5 | H62: 306128644 | I62: 316313752.2
B63: Obligación consumo energía limpia (MWh) | C63: 12265264.79 | D63: 17144051.39 | E63: 21863703.03 | F63: 28997601.58 | G63: 37117897.26 | H63: 45190798.44 | I63: 55175887.44
B64: % Obligación | C64: 0.046 | D64: 0.062 | E64: 0.078 | F64: 0.1 | G64: 0.125 | H64: 0.148 | I64: 0.174
B65: Dif. vs obligación SENER | C65: -0.004 | D65: 0.004 | E65: 0.004 | F65: -0.009 | G65: -0.014

Sheet 4. C Datos SEN
B2: Datos de consumo
B4: Consumo bruto de energía eléctrica (GWh)
B5: (Ventas SSB, ventas SSC, ventas SUR, Autoabastecimiento Remoto, Importación, pérdidas y usos propios Dx, Tx y Generadores)
C7: Fuente - Prodesen 2019: Tabla 6.1 Consumo bruto | E7: Fuente: PAMNRT 2019 - Figura 6.6. Pronóstico del consumo bruto del SEN 2019-2033, Escenario de Planeación
B8: Sistema | C8: 2017 | D8: 2018 | E8: 2019 | F8: 2020 | G8: 2021 | H8: 2022 | I8: 2023 | J8: 2024
B9: SIN | C9: 293127.3 | D9: 300786.8 | E9: 311161 | F9: 321142 | G9: 331193 | H9: 341147 | I9: 351331 | J9: 361768.3
B10: BC | C10: 13825.2 | D10: 14535.8 | E10: 14857 | F10: 15346 | G10: 15822 | H10: 16293 | I10: 16765 | J10: 17240.2
B11: BCS | C11: 2622 | D11: 2758.8 | E11: 2861 | F11: 2952 | G11: 3039 | H11: 3130 | I11: 3230 | J11: 3325
B12: Mulegé | C12: 152 | D12: 155 | E12: 163 | F12: 171 | G12: 177 | H12: 184 | I12: 190 | J12: 197
B13: Total | C13: 309726.5 | D13: 318236.4 | E13: 329042 | F13: 339611 | G13: 350231 | H13: 360754 | I13: 371516 | J13: 382530.5
B14: % Incremento | D14: 0.02747553083 | E14: 0.03395463247 | F14: 0.03212051957 | G14: 0.0312710719 | H14: 0.030045884 | I14: 0.02983196306 | J14: 0.02964744452
B15: Dif. vs. Obligaciones CEL SENER | E15: 0.02321112694 | F15: 0.06228484181 | G15: 0.04689424999 | H15: 0.03190839571
D17: 2018 | E17: 2019 | F17: 2020 | G17: 2021 | H17: 2022 | I17: 2023 | J17: 2024 | K17: Fuente - Prodesen 2019: Tabla 6.9 | P17: 2019 | Q17: 2020 | R17: 2021 | S17: 2022 | T17: 2023 | U17: 2024
B18: Consumo bruto | C18: Planeación | D18: 318236.4 | E18: 329042 | F18: 339611 | G18: 350231 | H18: 360754 | I18: 371516 | J18: 382530.5 | N18: % Incremento | O18: Planeación | P18: 0.03395463247 | Q18: 0.03212051957 | R18: 0.0312710719 | S18: 0.030045884 | T18: 0.02983196306 | U18: 0.02964744452
C19: Alto | D19: 318236.4 | E19: 329374.674 | F19: 340902.7876 | G19: 352834.3852 | H19: 365183.5886 | I19: 377965.0142 | J19: 391193.7897 | K19: 0.035 | O19: Alto | P19: 0.035 | Q19: 0.035 | R19: 0.035 | S19: 0.035 | T19: 0.035 | U19: 0.035
C20: Bajo | D20: 318236.4 | E20: 326828.7828 | F20: 335653.1599 | G20: 344715.7953 | H20: 354023.1217 | I20: 363581.746 | J20: 373398.4532 | K20: 0.027 | O20: Bajo | P20: 0.027 | Q20: 0.027 | R20: 0.027 | S20: 0.027 | T20: 0.027 | U20: 0.027
O21: Proporción alto | P21: 1.030787184 | Q21: 1.089646135 | R21: 1.119245292 | S21: 1.164885014 | T21: 1.173238246 | U21: 1.180540197
B22: Dato de Consumo para análisis | C22: Planeación | D22: 318236.4 | E22: 329042 | F22: 339611 | G22: 350231 | H22: 360754 | I22: 371516 | J22: 382530.5 | O22: Proporción bajo | P22: 0.7951786851 | Q22: 0.8405841612 | R22: 0.8634177966 | S22: 0.8986255821 | T22: 0.9050695038 | U22: 0.9107024377
B25: Consumo final
B26: (Ventas SSB, ventas SSC, ventas SUR, Autoabastecimiento Remoto)
D28: Fuente: Prodesen 2019 - Gráfico 6.3 | E28: Fuente: Estimación realizada por la COFECE
B29: Sistema | D29: 2018 | E29: 2019 | F29: 2020 | G29: 2021 | H29: 2022 | I29: 2023 | J29: 2024
B30: SEN - Escenario Planeación | C30: Planeación | D30: 268811 | E30: 277938.3787 | F30: 286865.9038 | G30: 295836.5081 | H30: 304725.1776 | I30: 313815.7278 | J30: 323119.5622
C31: Dif. respecto Consumo Bruto | D31: -0.1553103291
B32: SEN - Escenario Alto | C32: Alto | D32: 268811 | E32: 278219.385 | F32: 287957.0635 | G32: 298035.5607 | H32: 308466.8053 | I32: 319263.1435 | J32: 330437.3535
B33: SEN - Escenario Bajo | C33: Bajo | D33: 268811 | E33: 276068.897 | F33: 283522.7572 | G33: 291177.8717 | H33: 299039.6742 | I33: 307113.7454 | J33: 315405.8165
B35: Pérdidas
D37: Fuente: Prodesen 2019 (p.140)
D38: 2018
B39: Pérdidas técnicas RGD | D39: 0.0592 | E39: se considera para consumo final de Obligaciones
B40: Pérdidas no técnicas RGD | D40: 0.0754
B41: Total pérdidas RGD | D41: 0.1345
B42: Pérdidas técnicas AT | D42: 0.02081032905 | E42: se considera para consumo final de Obligaciones
B44: Consumo final más pérdidas técnicas RGD
E46: Fuente: Estimación realizada por la COFECE de consumo final con pérdidas técnicas RGD
D47: 2018 | E47: 2019 | F47: 2020 | G47: 2021 | H47: 2022 | I47: 2023 | J47: 2024
B48: Consumo final más pérdidas técnicas | C48: Planeación | D48: 294273.1991 | E48: 304265.1374 | F48: 314038.2917 | G48: 323858.6057 | H48: 333589.2238 | I48: 343540.8452 | J48: 353725.9534
C49: Alto | D49: 294273.1991 | E49: 304572.761 | F49: 315232.8077 | G49: 326265.956 | H49: 337685.2644 | I49: 349504.2487 | J49: 361736.8974
C50: Bajo | D50: 294273.1991 | E50: 302218.5755 | F50: 310378.477 | G50: 318758.6959 | H50: 327365.1807 | I50: 336204.0405 | J50: 345281.5496
B52: Dato de Consumo para análisis | C52: Planeación | D52: 294273.1991 | E52: 304265.1374 | F52: 314038.2917 | G52: 323858.6057 | H52: 333589.2238 | I52: 343540.8452 | J52: 353725.9534

Sheet 4. C Demanda CFE SSB
B2: Datos CFE SSB
B4: Ventas CFE SSB (GWh) - Datos reales y proyección
C6: Fuente: Informe Anual CFE 2018 (p.165) | E6: Fuente: estimación realizada por la COFECE de incremento anual
B7: Segmento | C7: 2017 | D7: 2018 | E7: 2019 | F7: 2020 | G7: 2021 | H7: 2022 | I7: 2023 | J7: 2024
B8: Residencial | C8: 59152.857 | D8: 61468.745
B9: Comercial | C9: 14896.744 | D9: 15251.535
B10: Servicios | C10: 4947.562 | D10: 4633.506
B11: Agrícola | C11: 11579.377 | D11: 10923.068
B12: Empresa mediana | C12: 87498.255 | D12: 87578.332 | M12: (GWh)
B13: Gran industria | C13: 37235.136 | D13: 38228.051 | L13: % cambio | M13: 2019 | N13: 2020 | O13: 2021 | P13: 2022 | Q13: 2023 | R13: 2024
B14: Consumo Neto total SSB P | C14: 215309.931 | D14: 218083.237 | E14: 219801.8485 | F14: 221534.0035 | G14: 223279.8088 | H14: 225039.372 | I14: 226812.8015 | J14: 228600.2066 | K14: <- | L14: 0.005 | M14: 1090.416185 | N14: 1099.009242 | O14: 1107.670018 | P14: 1116.399044 | Q14: 1125.19686 | R14: 1134.064008
D15: 0.8112883662 | E15: 0.7908294259 | F15: 0.772256307 | G15: 0.7547405499 | H15: 0.7384994369 | I15: 0.7227579163 | J15: 0.7074786963 | L15: % sobre Mediana y Gran Industria | M15: 0.008667415428 | N15: 0.008735719255 | O15: 0.008804561351 | P15: 0.00887394596 | Q15: 0.008943877356 | R15: 0.009014359849
D16: 0.8112883662 | E16: Fuente: estimación realizada por la COFECE de incremento anual
B17: Consumo Neto total SSB P | D17: 0.01288052988 | E17: 0.01288052988 | F17: 0.01288052988 | G17: 0.01288052988 | H17: 0.01288052988 | I17: 0.01288052988 | J17: 0.01288052988
M18: GRÁFICO 50. PROYECCIÓN DE DEMANDA DE CFE SSB, (TWH)
B20: (GWh) | C20: 2017 | D20: 2018 | E20: 2019 | F20: 2020 | G20: 2021 | H20: 2022 | I20: 2023 | J20: 2024
B21: Consumo CFE SSB final (con pérdidas técnicas) | C21: 232536.9494 | D21: 235532.1486 | E21: 237388.2667 | F21: 239259.012 | G21: 241144.4998 | H21: 243044.8462 | I21: 244960.1684 | J21: 246890.5843 | K21: Incluye pérdidas técnicas
D22: 0.05 | E22: 0.058 | F22: 0.074 | G22: 0.109 | H22: 0.139 | I22: 0.148 | J22: 0.174
B23: Requerimiento anual de CEL (millones de CEL) | D23: 11.77660743 | E23: 13.76851947 | F23: 17.70516689 | G23: 26.28475048 | H23: 33.78323363 | I23: 36.25410493 | J23: 42.95896168
B24: Incremento anual obligación CEL CFE SSB | D24: 11.77660743 | E24: 1.99191204 | F24: 3.936647421 | G24: 8.57958359 | H24: 7.498483149 | I24: 2.470871298 | J24: 6.70485675
B25: Obligación CEL CFE SSB año anterior | D25: 0 | E25: 11.77660743 | F25: 13.76851947 | G25: 17.70516689 | H25: 26.28475048 | I25: 33.78323363 | J25: 36.25410493
D26: 11.77660743 | E26: 13.76851947 | F26: 17.70516689 | G26: 26.28475048 | H26: 33.78323363 | I26: 36.25410493 | J26: 42.95896168
D28: 0.05 | E28: 0.008 | F28: 0.016 | G28: 0.035 | H28: 0.03 | I28: 0.009 | J28: 0.026
B58: Segmento
B59: Residencial | C59: 0.2747335282 | D59: 0.2818591004
B60: Comercial | C60: 0.06918744496 | D60: 0.06993446727
B61: Servicios | C61: 0.02297879144 | D61: 0.02124650232
B62: Agrícola | C62: 0.05378004139 | D62: 0.05008669236
B63: Empresa mediana | C63: 0.406382811 | D63: 0.4015821354
B64: Gran industria | C64: 0.172937383 | D64: 0.1752911023
B65: Consumo Neto total SSB P | C65: 1 | D65: 1
